lending/lending_fUSD_20240810
["ID","MTS","AMOUNT","RATE_DAILY","PERIOD"]
[334604193,1723323043670,-300.0,0.00013699,2]
[334604194,1723323043680,-176.66,0.00013735,2]
[334604195,1723323043689,-11730.3813962,0.0001376,2]
[334604196,1723323043699,-2629.2188262,0.00013791,2]
[334604197,1723323043709,-314.24633552,0.00013797,2]
[334604198,1723323043718,-1597.463636,0.00013798,2]
[334604199,1723323043728,-300.0,0.00013799,2]
[334604200,1723323043737,-2000.0,0.000138,2]
[334604201,1723323043747,-151.0,0.000138,2]
[334604202,1723323043756,-151.377868,0.000138,2]
[334604203,1723323043765,-151.0,0.000138,2]
[334604204,1723323043775,-151.0,0.000138,2]
[334604205,1723323043784,-245.307427,0.000138,2]
[334604206,1723323043794,-245.307427,0.000138,2]
[334604207,1723323043804,-151.0,0.000138,2]
[334604208,1723323043813,-151.0,0.000138,2]
[334604209,1723323043823,-151.0,0.000138,2]
[334604210,1723323043832,-200.885295,0.000138,2]
[334604211,1723323043842,-200.885295,0.000138,2]
[334604212,1723323043851,-187.104539,0.000138,2]
[334604213,1723323043860,-170.375111,0.000138,2]
[334604214,1723323043870,-182.092507,0.000138,2]
[334604215,1723323043879,-182.092507,0.000138,2]
[334604216,1723323043889,-320.270783,0.000138,2]
[334604217,1723323043898,-194.702186,0.000138,2]
[334604218,1723323043908,-194.702186,0.000138,2]
[334604219,1723323043917,-502123.628782,0.000138,3]
[334604220,1723323043927,-151.0,0.000138,2]
[334604221,1723323043937,-151.0,0.000138,2]
[334604222,1723323043947,-247.519392,0.000138,2]
[334604223,1723323043956,-247.519392,0.000138,2]
[334604224,1723323043965,-3825.455273,0.000138,2]
[334604225,1723323043975,-3825.455273,0.000138,2]
[334604226,1723323043985,-234.831309,0.000138,2]
[334604227,1723323043994,-234.831309,0.000138,2]
[334604228,1723323044004,-151.0,0.000138,2]
[334604229,1723323044013,-151.0,0.000138,2]
[334604230,1723323044023,-151.0,0.000138,2]
[334604231,1723323044032,-151.0,0.000138,2]
[334604232,1723323044041,-151.0,0.000138,2]
[334604233,1723323044051,-151.0,0.000138,2]
[334604234,1723323044061,-392.0,0.00013813,2]
[334604235,1723323044070,-305.71026992,0.00013859,2]
[334604236,1723323044080,-196.4,0.00013868,2]
[334604237,1723323044089,-400.0,0.0001387,2]
[334604238,1723323044099,-534.084696,0.0001387,2]
[334604239,1723323044109,-150.0,0.00013873,2]
[334604240,1723323044119,-256.06295204,0.00013873,2]
[334604241,1723323044129,-200.0,0.00013873,2]
[334604242,1723323044139,-200.0,0.00013873,2]
[334604243,1723323044149,-2626.5357167,0.0001389,2]
[334604244,1723323044158,-314.24633552,0.00013897,2]
[334604245,1723323044168,-33847.46000432,0.000139,2]
[334604246,1723323044178,-2000.0,0.000139,2]
[334604247,1723323044187,-151.0,0.000139,2]
[334604248,1723323044196,-218.76029,0.000139,2]
[334604249,1723323044205,-151.0,0.000139,2]
[334604250,1723323044215,-151.0,0.000139,2]
[334604251,1723323044223,-151.0,0.000139,2]
[334604252,1723323044233,-151.0,0.000139,2]
[334604253,1723323044243,-151.0,0.000139,2]
[334604254,1723323044252,-151.0,0.000139,2]
[334604255,1723323044262,-151.0,0.000139,2]
[334604256,1723323044272,-173.652852,0.000139,2]
[334604257,1723323044282,-151.0,0.000139,2]
[334604258,1723323044291,-223.803163,0.000139,2]
[334604259,1723323044300,-223.803163,0.000139,2]
[334604260,1723323044310,-595.86812,0.000139,2]
[334604261,1723323044319,-595.86812,0.000139,2]
[334604262,1723323044330,-151.0,0.000139,2]
[334604263,1723323044339,-151.0,0.000139,2]
[334604264,1723323044349,-151.0,0.000139,2]
[334604265,1723323044359,-245.307427,0.000139,2]
[334604266,1723323044368,-245.307427,0.000139,2]
[334604267,1723323044378,-151.0,0.000139,2]
[334604268,1723323044387,-151.0,0.000139,2]
[334604269,1723323044396,-151.0,0.000139,2]
[334604270,1723323044406,-200.885295,0.000139,2]
[334604271,1723323044415,-200.885295,0.000139,2]
[334604272,1723323044424,-182.092507,0.000139,2]
[334604273,1723323044434,-182.092507,0.000139,2]
[334604274,1723323044444,-320.270783,0.000139,2]
[334604275,1723323044454,-194.702186,0.000139,2]
[334604276,1723323044463,-194.702186,0.000139,2]
[334604277,1723323044477,-406742.452926,0.000139,3]
[334604278,1723323044486,-151.0,0.000139,2]
[334604279,1723323044495,-151.0,0.000139,2]
[334604280,1723323044504,-247.519392,0.000139,2]
[334604281,1723323044515,-247.519392,0.000139,2]
[334604282,1723323044524,-3825.455273,0.000139,2]
[334604283,1723323044534,-3825.455273,0.000139,2]
[334604284,1723323044545,-234.831309,0.000139,2]
[334604285,1723323044554,-234.831309,0.000139,2]
[334604286,1723323044563,-268.087017,0.000139,2]
[334604287,1723323044572,-151.0,0.000139,2]
[334604288,1723323044581,-151.0,0.000139,2]
[334604289,1723323044591,-151.0,0.000139,2]
[334604290,1723323044600,-151.0,0.000139,2]
[334604291,1723323044610,-151.0,0.000139,2]
[334604292,1723323044620,-151.0,0.00013933,2]
[334604293,1723323044630,-1249.125566,0.00013973,2]
[334604294,1723323044639,-878.56,0.00013973,2]
[334604295,1723323044648,-329.71,0.00013973,2]
[334604296,1723323044658,-182.35,0.00013973,2]
[334604297,1723323044668,-179.27,0.00013973,2]
[334604298,1723323044679,-165.18,0.00013973,2]
[334604299,1723323044690,-150.0,0.0001399,2]
[334604300,1723323044701,-3317.70093306,0.00014,4]
[334604301,1723323044748,-7174.271164,0.00014,2]
[334604302,1723323044757,-1000.0,0.00014,4]
[334604303,1723323044767,-650.0,0.00014,2]
[334604304,1723323044775,-760.0,0.00014056,2]
[334604305,1723323044785,-793.0,0.00014113,2]
[334604306,1723323044794,-211.0,0.0001423,2]
[334604307,1723323044803,-250.0,0.00014421,2]
[334604308,1723323044812,-2000.0,0.000145,2]
[334604309,1723323044822,-176.66,0.00014586,2]
[334604310,1723323044831,-203.6,0.00014644,2]
[334604311,1723323044841,-1249.125566,0.00014795,2]
[334604312,1723323044852,-2000.0,0.000148,2]
[334604313,1723323044861,-793.0,0.00014855,2]
[334604314,1723323044872,-793.0,0.00014855,2]
[334604315,1723323044882,-155.0,0.00014899,2]
[334604316,1723323044891,-155.0,0.00014899,2]
[334604317,1723323044900,-169.40193675,0.000149,2]
[334604318,1723323044909,-2000.0,0.000149,2]
[334604319,1723323044918,-211.44168177,0.000149,2]
[334604320,1723323044927,-741.72922739,0.000149,2]
[334604321,1723323044937,-215.16299926,0.000149,2]
[334604322,1723323044946,-203.78852834,0.000149,2]
[334604323,1723323044957,-561.10286412,0.000149,2]
[334604324,1723323044968,-350.0,0.00014968,2]
[334604325,1723323044980,-155.0,0.00014988,2]
[334604326,1723323044991,-1974.8837658,0.0001499,2]
[334604327,1723323045002,-1200.7840448,0.0001499,2]
[334604328,1723323045011,-1988.3845432,0.0001499,2]
[334604329,1723323045020,-640.71,0.00014998,2]
[334604330,1723323045032,-1198.29430375,0.00015,2]
[334604331,1723323045041,-265.01762728,0.00015,2]
[334604332,1723323045051,-298.91334212,0.00015,2]
[334604333,1723323045060,-281753.09928176,0.00015,2]
[334604334,1723323045070,-222802.18792441,0.00015,2]
[334604335,1723323045079,-495.0,0.00015,2]
[334604336,1723323045088,-495.0,0.00015,2]
[334604337,1723323045098,-1000.0,0.00015,6]
[334604338,1723323045107,-211.0,0.00015,2]
[334604339,1723323045117,-9661.0,0.00015,2]
[334604340,1723323045126,-213.232497,0.00015,2]
[334604341,1723323045135,-151.0,0.00015,2]
[334604342,1723323045144,-151.0,0.00015,2]
[334604343,1723323045153,-151.0,0.00015,2]
[334604344,1723323045162,-151.0,0.00015,2]
[334604345,1723323045172,-151.0,0.00015,2]
[334604346,1723323045181,-151.0,0.00015,2]
[334604347,1723323045190,-151.0,0.00015,2]
[334604348,1723323045199,-151.0,0.00015,2]
[334604349,1723323045209,-151.0,0.00015,2]
[334604350,1723323045218,-151.0,0.00015,2]
[334604351,1723323045227,-151.0,0.00015,2]
[334604352,1723323045237,-151.0,0.00015,2]
[334604353,1723323045246,-1006.08,0.00015,2]
[334604354,1723323045255,-223.803163,0.00015,2]
[334604355,1723323045264,-223.803163,0.00015,2]
[334604356,1723323045273,-223.803163,0.00015,2]
[334604357,1723323045282,-223.803163,0.00015,2]
[334604358,1723323045293,-595.86812,0.00015,2]
[334604359,1723323045302,-595.86812,0.00015,2]
[334604360,1723323045311,-308.4,0.00015,2]
[334604361,1723323045321,-595.86812,0.00015,2]
[334604362,1723323045330,-595.86812,0.00015,2]
[334604363,1723323045339,-151.0,0.00015,2]
[334604364,1723323045348,-151.0,0.00015,2]
[334604365,1723323045357,-151.0,0.00015,2]
[334604366,1723323045366,-151.0,0.00015,2]
[334604367,1723323045377,-245.307427,0.00015,2]
[334604368,1723323045386,-245.307427,0.00015,2]
[334604369,1723323045395,-245.307427,0.00015,2]
[334604370,1723323045403,-245.307427,0.00015,2]
[334604371,1723323045412,-151.0,0.00015,2]
[334604372,1723323045422,-151.0,0.00015,2]
[334604373,1723323045431,-151.0,0.00015,2]
[334604374,1723323045439,-174.759644,0.00015,2]
[334604375,1723323045448,-151.0,0.00015,2]
[334604376,1723323045457,-151.0,0.00015,2]
[334604377,1723323045467,-200.885295,0.00015,2]
[334604378,1723323045479,-200.885295,0.00015,2]
[334604379,1723323045488,-200.885295,0.00015,2]
[334604380,1723323045497,-200.885295,0.00015,2]
[334604381,1723323045507,-182.092507,0.00015,2]
[334604382,1723323045517,-182.092507,0.00015,2]
[334604383,1723323045527,-182.092507,0.00015,2]
[334604384,1723323045537,-182.092507,0.00015,2]
[334604385,1723323045546,-320.270783,0.00015,2]
[334604386,1723323045559,-320.270783,0.00015,2]
[334604387,1723323045569,-194.702186,0.00015,2]
[334604388,1723323045579,-194.702186,0.00015,2]
[334604389,1723323045589,-194.702186,0.00015,2]
[334604390,1723323045598,-194.702186,0.00015,2]
[334604391,1723323045608,-151.0,0.00015,2]
[334604392,1723323045616,-151.0,0.00015,2]
[334604393,1723323045627,-151.0,0.00015,2]
[334604394,1723323045636,-151.0,0.00015,2]
[334604395,1723323045647,-247.519392,0.00015,2]
[334604396,1723323045657,-247.519392,0.00015,2]
[334604397,1723323045667,-247.519392,0.00015,2]
[334604398,1723323045678,-247.519392,0.00015,2]
[334604399,1723323045688,-3825.455273,0.00015,2]
[334604400,1723323045699,-3825.455273,0.00015,2]
[334604401,1723323045709,-3825.455273,0.00015,2]
[334604402,1723323045718,-3825.455273,0.00015,2]
[334604403,1723323045728,-234.831309,0.00015,2]
[334604404,1723323045739,-234.831309,0.00015,2]
[334604405,1723323045749,-234.831309,0.00015,2]
[334604406,1723323045758,-234.831309,0.00015,2]
[334604407,1723323045767,-151.0,0.00015,2]
[334604408,1723323045778,-199.046468,0.00015,2]
[334604409,1723323045788,-151.0,0.00015,2]
[334604410,1723323045799,-151.0,0.00015,2]
[334604411,1723323045811,-1328.0,0.00015,2]
[334604412,1723323045822,-151.0,0.00015,2]
[334604413,1723323045831,-151.0,0.00015,2]
[334604414,1723323045841,-300.0,0.00015068,2]
[334604415,1723323045852,-500.0,0.000151,2]
[334604416,1723323045863,-392.0,0.00015195,2]
[334604417,1723323045874,-400.0,0.00015242,2]
[334604418,1723323045891,-200.0,0.00015242,2]
[334604419,1723323045902,-196.4,0.00015255,2]
[334604420,1723323045914,-760.0,0.00015334,2]
[334604421,1723323045926,-15753.46255264,0.000154,2]
[334604422,1723323045938,-2000.0,0.000155,2]
[334604423,1723323045948,-362.75394726,0.00015506,2]
[334604424,1723323045959,-450.0,0.00015516,2]
[334604425,1723323045972,-1249.125566,0.00015616,2]
[334604426,1723323045982,-793.0,0.00015637,2]
[334604427,1723323045993,-793.0,0.00015637,2]
[334604428,1723323046004,-150.0,0.00015667,2]
[334604429,1723323046013,-211.0,0.0001577,2]
[334604430,1723323046024,-2000.0,0.000158,2]
[334604431,1723323046034,-167.0,0.00015831,2]
[334604432,1723323046043,-308.4,0.0001584,2]
[334604433,1723323046053,-914.94607,0.0001589,2]
[334604434,1723323046062,-2000.0,0.000159,2]
[334604435,1723323046072,-203.6,0.00015975,2]
[334604436,1723323046083,-155.0,0.00015999,2]
[334604437,1723323046092,-2000.0,0.00016,2]
[334604438,1723323046101,-700.0,0.00016,2]
[334604439,1723323046110,-3434.249142,0.0001601,2]
[334604440,1723323046119,-550.0,0.00016064,2]
[334604441,1723323046130,-9999.99,0.00016116,2]
[334604442,1723323046140,-1006.08,0.00016155,2]
[334604445,1723323046149,-167.0,0.00016354,2]
[334604448,1723323046159,-1249.125566,0.00016438,2]
[334604449,1723323046168,-300.0,0.00016438,2]
[334604450,1723323046179,-150.0,0.00016438,2]
[334604451,1723323046189,-314.24633552,0.00016458,2]
[334604452,1723323046200,-793.0,0.0001646,2]
[334604453,1723323046212,-793.0,0.0001646,2]
[334604454,1723323046223,-2037.02,0.000165,2]
[334604455,1723323046232,-552.9,0.000165,2]
[334604456,1723323046241,-211.0,0.0001654,2]
[334604457,1723323046250,-392.0,0.00016576,2]
[334604458,1723323046259,-196.4,0.00016642,2]
[334604459,1723323046268,-308.4,0.0001668,2]
[334604460,1723323046277,-151.0,0.00016699,2]
[334604461,1723323046286,-320.270783,0.00016699,2]
[334604462,1723323046296,-194.702186,0.00016699,2]
[334604463,1723323046306,-194.702186,0.00016699,2]
[334604464,1723323046317,-151.0,0.00016699,2]
[334604465,1723323046328,-247.519392,0.00016699,2]
[334604466,1723323046337,-247.519392,0.00016699,2]
[334604467,1723323046346,-3825.455273,0.00016699,2]
[334604468,1723323046355,-3825.455273,0.00016699,2]
[334604469,1723323046365,-234.831309,0.00016699,2]
[334604470,1723323046374,-234.831309,0.00016699,2]
[334604471,1723323046393,-151.0,0.00016699,2]
[334604472,1723323046402,-4063.05426693,0.00016708,2]
[334604473,1723323046412,-151.0,0.00016712,2]
[334604474,1723323046421,-151.495672,0.00016712,2]
[334604475,1723323046430,-151.0,0.00016712,2]
[334604476,1723323046440,-151.0,0.00016712,2]
[334604477,1723323046449,-151.0,0.00016712,2]
[334604478,1723323046459,-223.803163,0.00016712,2]
[334604479,1723323046471,-223.803163,0.00016712,2]
[334604480,1723323046483,-595.86812,0.00016712,2]
[334604481,1723323046492,-595.86812,0.00016712,2]
[334604482,1723323046502,-245.307427,0.00016712,2]
[334604483,1723323046512,-245.307427,0.00016712,2]
[334604484,1723323046522,-151.0,0.00016712,2]
[334604485,1723323046532,-200.885295,0.00016712,2]
[334604486,1723323046542,-200.885295,0.00016712,2]
[334604487,1723323046554,-216.9,0.00016712,2]
[334604488,1723323046564,-1000.0,0.00016774,2]
[334604489,1723323046575,-218.075304,0.00016774,2]
[334604490,1723323046585,-404.95738237,0.00016781,7]
[334604492,1723323046595,-484.55762474,0.00016781,7]
[334604493,1723323046606,-88715.3573582,0.00016781,7]
[334604494,1723323046617,-412.16987219,0.00016781,7]
[334604495,1723323046628,-151.0,0.00016781,2]
[334604496,1723323046638,-151.0,0.00016781,2]
[334604497,1723323046648,-182.092507,0.00016781,2]
[334604498,1723323046658,-182.092507,0.00016781,2]
[334604499,1723323046669,-245.307427,0.00016798,2]
[334604500,1723323046680,-245.307421,0.00016798,2]
[334604501,1723323046691,-151.0,0.00016798,2]
[334604502,1723323046702,-200.885295,0.00016798,2]
[334604503,1723323046712,-200.885299,0.00016798,2]
[334604504,1723323046722,-320.270776,0.00016798,2]
[334604505,1723323046733,-194.702186,0.00016798,2]
[334604506,1723323046742,-194.702186,0.00016798,2]
[334604507,1723323046753,-2000.0,0.000168,2]
[334604508,1723323046763,-151.0,0.000168,2]
[334604509,1723323046772,-151.0,0.000168,2]
[334604510,1723323046782,-151.0,0.000168,2]
[334604511,1723323046791,-151.0,0.000168,2]
[334604512,1723323046802,-223.803163,0.000168,2]
[334604513,1723323046814,-223.803163,0.000168,2]
[334604514,1723323046823,-595.86812,0.000168,2]
[334604515,1723323046833,-595.86812,0.000168,2]
[334604516,1723323046843,-167.0,0.00016876,2]
[334604517,1723323046852,-2000.0,0.000169,2]
[334604518,1723323046862,-151.0,0.00016986,2]
[334604519,1723323046871,-247.519392,0.00016986,2]
[334604520,1723323046882,-247.519392,0.00016986,2]
[334604521,1723323046891,-3825.455273,0.00016986,2]
[334604522,1723323046901,-3825.455273,0.00016986,2]
[334604523,1723323046910,-234.831309,0.00016986,2]
[334604524,1723323046920,-234.831309,0.00016986,2]
[334604525,1723323046929,-258.082236,0.00016986,2]
[334604526,1723323046939,-3847.04,0.00016986,2]
[334604527,1723323046948,-1800.0,0.00017,3]
[334604528,1723323046958,-250.0,0.00017123,2]
[334604529,1723323046967,-567.71,0.000172,7]
[334604530,1723323046977,-600.0,0.00017246,2]
[334604531,1723323046987,-640.71,0.00017257,2]
[334604532,1723323046996,-1249.125566,0.0001726,2]
[334604533,1723323047006,-211.0,0.000173,2]
[334604534,1723323047015,-1006.08,0.0001731,2]
[334604535,1723323047025,-793.0,0.00017326,2]
[334604536,1723323047034,-793.0,0.00017326,2]
[334604537,1723323047043,-362.75394726,0.00017385,2]
[334604538,1723323047054,-167.0,0.00017399,2]
[334604539,1723323047063,-151.0,0.00017416,2]
[334604540,1723323047073,-308.4,0.0001752,2]
[334604541,1723323047082,-340.93,0.00017534,2]
[334604542,1723323047092,-30740.54666014,0.00017688,2]
[334604543,1723323047102,-300.45,0.00017734,2]
[334604544,1723323047111,-202.0,0.00017798,30]
[334604545,1723323047120,-552.9,0.000178,2]
[334604546,1723323047131,-350.20842455,0.00017808,2]
[334604547,1723323047141,-552.899999,0.000179,2]
[334604548,1723323047151,-167.0,0.00017921,2]
[334604549,1723323047161,-591.65069221,0.00018,2]
[334604550,1723323047170,-1298.07817308,0.00018,2]
[334604551,1723323047180,-155.0,0.00018,2]
[334604552,1723323047190,-750.0,0.00018,2]
[334604553,1723323047200,-211.0,0.0001807,2]
[334604554,1723323047209,-1249.125566,0.00018082,2]
[334604555,1723323047220,-793.0,0.00018193,2]
[334604556,1723323047229,-793.0,0.00018193,2]
[334604557,1723323047239,-308.4,0.0001836,2]
[334604558,1723323047248,-914.94607,0.0001839,2]
[334604559,1723323047258,-2037.02,0.000184,2]
[334604560,1723323047268,-167.0,0.00018444,2]
[334604561,1723323047278,-1006.08,0.00018465,2]
[334604562,1723323047288,-5627.81536284,0.000186,2]
[334604563,1723323047297,-174.91802156,0.00018708,2]
[334604564,1723323047307,-211.0,0.0001884,2]
[334604565,1723323047317,-155.0,0.00019,2]
[334604566,1723323047326,-186.4608952,0.00019,2]
[334604567,1723323047336,-155.0,0.00019,2]
[334604568,1723323047346,-1076.39481009,0.00019,2]
[334604569,1723323047355,-793.0,0.00019102,2]
[334604570,1723323047365,-793.0,0.00019102,2]
[334604571,1723323047374,-750.0,0.000192,2]
[334604572,1723323047386,-308.4,0.000192,2]
[334604573,1723323047395,-362.75394726,0.00019263,2]
[334604574,1723323047405,-640.71,0.00019517,2]
[334604575,1723323047415,-800.0,0.00019587,2]
[334604576,1723323047427,-19947.26193659,0.00019599,2]
[334604577,1723323047436,-211.0,0.0001961,2]
[334604578,1723323047447,-1006.08,0.0001962,2]
[334604579,1723323047457,-7439.3626872,0.000198,2]
[334604580,1723323047468,-151.0,0.000198,2]
[334604581,1723323047482,-164.9525309,0.000199,2]
[334604582,1723323047492,-741.72922737,0.000199,2]
[334604583,1723323047502,-561.1028641,0.000199,3]
[334604584,1723323047514,-248.96644737,0.00019999,2]
[334604585,1723323047524,-258.56600752,0.0002,2]
[334604586,1723323047534,-34235.72996606,0.0002,2]
[334604587,1723323047545,-990.0,0.0002,2]
[334604588,1723323047555,-150.0,0.0002,2]
[334604589,1723323047566,-12080.39076125,0.0002,2]
[334604590,1723323047576,-3200.0,0.0002,2]
[334604591,1723323047586,-2274.1570031,0.0002,2]
[334604592,1723323047596,-1284.50441733,0.0002,2]
[334604593,1723323047606,-155.0,0.0002,2]
[334604594,1723323047616,-155.0,0.0002,2]
[334604595,1723323047625,-156.40457217,0.0002,2]
[334604596,1723323047635,-2037.02,0.0002,2]
[334604597,1723323047645,-626.44965531,0.0002,2]
[334604598,1723323047655,-868.96369562,0.0002,2]
[334604599,1723323047665,-168.29378559,0.0002,2]
[334604600,1723323047674,-2732.63847904,0.0002,7]
[334604601,1723323047684,-1800.0,0.0002,5]
[334604602,1723323047694,-192.0,0.0002,2]
[334604603,1723323047704,-7000.0,0.0002,4]
[334604604,1723323047715,-614.0,0.0002,2]
[334604605,1723323047725,-990.0,0.0002,2]
[334604606,1723323047735,-171.0,0.0002,2]
[334604607,1723323047744,-859.0,0.0002,2]
[334604608,1723323047754,-192.0,0.0002,2]
[334604609,1723323047764,-500.0,0.0002,2]
[334604610,1723323047773,-500.0,0.0002,2]
[334604611,1723323047783,-500.0,0.0002,2]
[334604612,1723323047793,-500.0,0.0002,2]
[334604613,1723323047802,-500.0,0.0002,2]
[334604614,1723323047812,-239.48,0.0002,2]
[334604615,1723323047822,-955.0,0.0002,12]
[334604616,1723323047831,-4139.74824589,0.0002,2]
[334604617,1723323047840,-2821.0,0.0002,2]
[334604618,1723323047850,-2500.0,0.0002,2]
[334604619,1723323047859,-2500.0,0.0002,2]
[334604620,1723323047869,-151.0,0.0002,2]
[334604621,1723323047878,-151.0,0.0002,2]
[334604622,1723323047887,-151.0,0.0002,2]
[334604623,1723323047897,-223.803163,0.0002,2]
[334604624,1723323047906,-223.803159,0.0002,2]
[334604625,1723323047916,-595.86812,0.0002,2]
[334604626,1723323047925,-595.868114,0.0002,2]
[334604627,1723323047934,-151.0,0.0002,2]
[334604628,1723323047944,-2000.0,0.0002,2]
[334604629,1723323047954,-151.0,0.0002,2]
[334604630,1723323047963,-182.092507,0.0002,2]
[334604631,1723323047973,-182.092507,0.0002,2]
[334604632,1723323047982,-151.0,0.0002,2]
[334604633,1723323047992,-247.519392,0.0002,2]
[334604634,1723323048001,-247.519392,0.0002,2]
[334604635,1723323048011,-3825.455273,0.0002,2]
[334604636,1723323048020,-3825.455273,0.0002,2]
[334604637,1723323048030,-234.831309,0.0002,2]
[334604638,1723323048039,-234.831309,0.0002,2]
[334604639,1723323048049,-800.0,0.0002,2]
[334604640,1723323048058,-1000.0,0.0002,2]
[334604641,1723323048068,-2000.0,0.0002001,2]
[334604642,1723323048078,-2000.0,0.0002002,2]
[334604643,1723323048087,-600.0,0.00020022,2]
[334604644,1723323048097,-3225.298601,0.0002003,2]
[334604645,1723323048107,-308.4,0.0002004,2]
[334604646,1723323048116,-793.0,0.00020058,2]
[334604647,1723323048126,-793.0,0.00020058,2]
[334604648,1723323048135,-500.0,0.00020108,2]
[334604649,1723323048145,-1000.0,0.00020162,2]
[334604650,1723323048155,-500.0,0.00020163,2]
[334604651,1723323048164,-1000.0,0.00020226,2]
[334604652,1723323048173,-500.0,0.00020234,2]
[334604653,1723323048183,-500.0,0.00020235,2]
[334604654,1723323048192,-1000.0,0.00020294,2]
[334604655,1723323048201,-500.0,0.00020312,2]
[334604656,1723323048210,-150.0,0.00020333,4]
[334604657,1723323048220,-2698.50483522,0.0002038,2]
[334604658,1723323048229,-211.0,0.0002038,2]
[334604659,1723323048239,-500.0,0.00020402,2]
[334604660,1723323048248,-500.0,0.00020432,2]
[334604661,1723323048258,-878.56,0.00020447,2]
[334604662,1723323048267,-329.71,0.00020447,2]
[334604663,1723323048277,-182.35,0.00020447,2]
[334604664,1723323048286,-152.0,0.00020465,3]
[334604665,1723323048296,-500.0,0.00020465,2]
[334604666,1723323048304,-500.0,0.0002047,2]
[334604667,1723323048314,-500.0,0.00020507,2]
[334604668,1723323048324,-173.0,0.00020548,2]
[334604669,1723323048333,-500.0,0.00020569,2]
[334604670,1723323048343,-600.0,0.00020599,2]
[334604671,1723323048353,-500.0,0.00020751,2]
[334604672,1723323048362,-1006.08,0.00020775,2]
[334604673,1723323048372,-155.0,0.00020831,2]
[334604674,1723323048384,-155.0,0.00020831,2]
[334604675,1723323048394,-500.0,0.00020842,2]
[334604676,1723323048403,-500.0,0.00020845,2]
[334604677,1723323048413,-500.0,0.00020853,2]
[334604678,1723323048423,-600.0,0.00020868,2]
[334604679,1723323048433,-308.4,0.0002088,2]
[334604680,1723323048443,-914.94607,0.0002089,2]
[334604681,1723323048453,-1000.0,0.00020917,2]
[334604682,1723323048463,-1320.5487054,0.00020986,2]
[334604683,1723323048476,-804.1044535,0.00020986,2]
[334604684,1723323048485,-500.0,0.00020999,2]
[334604685,1723323048495,-1490.09830567,0.00021,2]
[334604686,1723323048504,-433.26495225,0.00021,2]
[334604687,1723323048515,-265.87,0.00021,2]
[334604688,1723323048526,-259200.77218799,0.00021,2]
[334604689,1723323048536,-4625.9231931,0.00021,4]
[334604690,1723323048546,-4529.49272507,0.00021,2]
[334604691,1723323048558,-2810.8624476,0.00021,2]
[334604692,1723323048568,-3181.11819082,0.00021,2]
[334604693,1723323048578,-234.64964,0.00021,2]
[334604694,1723323048588,-228.064076,0.00021,2]
[334604695,1723323048597,-151.0,0.00021,2]
[334604696,1723323048607,-151.626898,0.00021,2]
[334604697,1723323048755,-247.519392,0.00021,2]